[Event "44th Chess Olympiad Open 2022"]
[Site "Chennai"]
[Date "2022.08.08"]
[Round "10.63"]
[White "Rakotomaharo, Fy Antenaina"]
[Black "Hasford, John Kojo"]
[Result "1-0"]
[ECO "B08"]
[WhiteElo "2490"]
[BlackElo "1976"]
[Annotator "TA"]
[PlyCount "65"]
[EventDate "2022.07.29"]
[EventType "team-tourn"]
[EventCountry "IND"]
[SourceTitle "playchess.com"]
[Source "ChessBase"]
[SourceQuality "1"]
[WhiteTeam "Madagascar"]
[BlackTeam "Ghana"]
[WhiteTeamCountry "MAD"]
[BlackTeamCountry "GHA"]
[TimeControl "40/5400+30:1800+30"]

{[%evp 9,65,28,26,30,23,24,35,29,40,45,50,47,47,52,52,36,63,50,66,50,65,58,99,41,136,83,84,85,181,191,177,193,221,209,273,298,525,525,511,498,821,807,1041,1031,1015,958,1734,1716,29985,1533,29988,494,29989,29990,29993,29994,29994,29995]} 1. e4 {[%emt 0:00:06]} g6 {[%emt 0:01:47]} 2. d4 {[%emt 0:00:17]} d6 {[%emt 0:00:21]} 3. Nc3 {[%emt 0:00:39]} Bg7 {[%emt 0:00:36]} 4. Be3 {[%emt 0:00:27]} Nf6 {[%emt 0:01:11]} 5. Nf3 {[%emt 0:00:15]} a6 {[%emt 0:00:44]} 6. a4 {[%emt 0:00:27] Against b5. B08: Pirc Defence: Classical System.} Nc6 {[%emt 0:01:58]} 7. Bc4 {[%emt 0:00:14]} O-O {[%emt 0:00:59]} 8. O-O {[%emt 0:00:41] White is slightly better.} e5 {[%emt 0:00:26]} 9. dxe5 {[%emt 0:12:54]} Nxe5 {[%emt 0:03:07]} 10. Nxe5 {[%emt 0:00:11]} dxe5 {[%emt 0:00:06] [#]} 11. a5 $146 {[%emt 0:06:01]} ({Predecessor:} 11. Bc5 Re8 12. Qe2 Nh5 13. Nd5 Nf4 14. Qf3 Ne6 15. Be3 Nd4 16. Qd1 c6 17. Nb4 Qh4 18. c3 Nf5 19. Bxf7+ Kxf7 20. exf5 Bxf5 21. Qb3+ Be6 22. Qc2 {½-½ (22) Kundrik,P (2260)-Bezuch,M (2210) Slovakia 2012}) 11... Qe7 {[%emt 0:05:09]} 12. Qe2 {[%emt 0:02:46]} Be6 {[%emt 0:01:44]} 13. Ra3 {[%emt 0:00:10]} Rad8 {[%emt 0:04:33]} 14. Rb3 {[%emt 0:03:26]} Bc8 {[%emt 0:04:18]} 15. f3 {[%emt 0:00:06]} c6 {[%emt 0:06:00]} 16. Bb6 {[%emt 0:11:54]} ({White should try} 16. Na4 $16) 16... Rde8 {[%emt 0:07:01]} ({Black should play} 16... Bh6 $14) 17. Na4 {[%emt 0:00:29]} (17. Rd1 $142) 17... Nd7 $16 {[%emt 0:01:09]} 18. Be3 {[%emt 0:00:05] 0x0.0024d747ae06dp-1022s more active pieces.} Kh8 {[%emt 0:00:59]} (18... Rd8 $16 {keeps fighting.}) 19. Rd1 $18 {[%emt 0:01:44]} f5 {[%emt 0:01:19]} 20. Rbd3 {[%emt 0:00:00][%cal Od3d7]} fxe4 {[%emt 0:03:48]} 21. fxe4 {[%emt 0:01:02][%cal Od3d7] And now Rxd7! would win.} Qb4 {[%emt 0:02:00] [#]} 22. b3 {[%emt 0:03:32]} ({Worse is} 22. Rxd7 Bxd7 23. Rxd7 (23. Bc5 Qxa4 24. Bxf8 Rxf8 $17) 23... Qxa4 $15) 22... Qxa5 $2 {[%emt 0:04:37]} (22... Nf6 23. c3 Qe7) 23. Rxd7 {[%emt 0:00:16]} Bxd7 {[%emt 0:03:34]} 24. Rxd7 {[%emt 0:00:03]} b5 {[%emt 0:00:50]} (24... Rd8 $142) 25. Bd2 {[%emt 0:00:25] A strong pair of Bishops.} b4 {[%emt 0:01:49]} 26. Be3 {[%emt 0:07:19]} Rb8 {[%emt 0:01:19]} 27. Ba7 {[%emt 0:00:30]} Rb5 {[%emt 0:03:30]} 28. Qd2 {[%emt 0:00:13]} Rf6 {[%emt 0:11:36]} 29. Rd8+ {[%emt 0:00:59]} (29. Be3 $142 Rd5 30. exd5 c5 31. Bh6 Bf8 32. Bxf8 Qxa4 33. bxa4 Kg8 34. d6+ Rf7 35. Bxf7+ Kh8 36. Qh6 e4 37. Qg7#) 29... Rf8 {[%emt 0:07:23]} 30. Rxf8+ {[%emt 0:01:18]} Bxf8 {[%emt 0:02:30]} 31. Qd7 {[%emt 0:00:06] Prevents Rb7. White mates.} Bc5+ {[%emt 0:02:39]} 32. Bxc5 {[%emt 0:00:05]} Rxc5 {[%emt 0:00:30]} 33. Qe7 {[%emt 0:00:04] Weighted Error Value: White=0.08 (flawless) /Black=0.78} 1-0

[Event "44th Chess Olympiad Open 2022"]
[Site "Chennai"]
[Date "2022.08.08"]
[Round "10.66"]
[White "Al-Hajiri, Bader"]
[Black "Ortega Amarelle, Mariano"]
[Result "0-1"]
[ECO "D30"]
[WhiteElo "2011"]
[BlackElo "2463"]
[Annotator "TA"]
[PlyCount "106"]
[EventDate "2022.07.29"]
[EventType "team-tourn"]
[EventCountry "IND"]
[SourceTitle "playchess.com"]
[Source "ChessBase"]
[SourceQuality "1"]
[WhiteTeam "Kuwait"]
[BlackTeam "CPV"]
[WhiteTeamCountry "KUW"]
[TimeControl "40/5400+30:1800+30"]

{[%evp 9,106,8,9,-22,8,-8,0,-34,-25,-29,-33,-35,-35,-31,-17,-34,0,0,0,-25,-20,-26,-1,-14,-3,-7,-9,-5,0,-22,-22,-27,-32,-36,-33,-42,0,-93,-95,-89,-94,-88,-95,-94,-93,-77,-85,-88,-89,-249,-234,-247,-244,-320,-297,-641,-641,-641,-341,-689,-668,-812,-785,-870,-870,-4994,-211,-219,-212,-219,-219,-219,-219,-219,-219,-219,-212,-204,-204,-287,-287,-287,-287,-287,-287,-287,-287,-508,-493,-508,-494,-487,-487,-484,-474,-1230,-1308,-1655,-1200]} 1. d4 {[%emt 0:00:09]} Nf6 {[%emt 0:00:14]} 2. c4 {[%emt 0:00:12]} e6 {[%emt 0:00:06]} 3. Nf3 {[%emt 0:00:13]} d5 {[%emt 0:01:04]} 4. Bg5 {[%emt 0:02:35]} dxc4 {[%emt 0:18:18]} 5. Qa4+ {[%emt 0:05:52]} Nbd7 {[%emt 0:00:25]} 6. Nc3 {[%emt 0:02:59] D30: Queen's Gambit Declined: Systems without Nc3.} Be7 {[%emt 0:03:18]} 7. e3 {[%emt 0:01:40]} O-O {[%emt 0:00:13][%cal Ob7b5]} 8. Qxc4 {[%emt 0:00:07] The position is equal.} a6 {[%emt 0:00:18]} 9. Be2 {[%emt 0:01:21]} b5 {[%emt 0:02:08]} 10. Qb3 {[%emt 0:00:48]} c5 {[%emt 0:01:11]} 11. O-O {[%emt 0:02:44]} h6 {[%emt 0:13:22]} 12. Bh4 {[%emt 0:02:38] [#]} c4 $146 {[%emt 0:04:04]} ({Predecessor:} 12... Bb7 13. Rfd1 Nd5 14. Bg3 Qb6 15. a4 c4 16. Qc2 N7f6 17. Ne5 Rac8 18. Bh4 Rfd8 {1-0 (42) Dreev,A (2623)-Van Foreest,L (2530) Warsaw 2021}) 13. Qc2 {[%emt 0:05:50]} Bb7 {[%emt 0:00:07]} 14. Rfd1 {[%emt 0:02:25]} Nd5 {[%emt 0:06:01]} 15. Bg3 {[%emt 0:02:28]} N7f6 {[%emt 0:13:00]} 16. Nd2 {[%emt 0:06:25]} Rc8 {[%emt 0:02:15]} 17. a3 {[%emt 0:05:40]} Nb6 {[%emt 0:04:22]} 18. Bf3 {[%emt 0:06:23]} Qd7 {[%emt 0:01:53]} 19. Nde4 {[%emt 0:01:02]} Nxe4 {[%emt 0:03:03]} 20. Nxe4 {[%emt 0:01:39][%cal Oe4c5] Hoping for Nc5!} Bd5 {[%emt 0:03:54]} 21. Nc5 {[%emt 0:04:31]} Qa7 {[%emt 0:00:08]} 22. e4 {[%emt 0:00:11]} Ba8 {[%emt 0:00:14]} 23. b4 {[%emt 0:00:12]} (23. a4 $1 $11 Bxc5 24. axb5 (24. dxc5 Nxa4 25. Bd6 Nxc5 $15)) 23... cxb3 $1 $17 {[%emt 0:01:10]} 24. Qxb3 {[%emt 0:00:09]} Nc4 {[%emt 0:07:48]} 25. a4 {[%emt 0:18:00]} Bxc5 {[%emt 0:00:06]} 26. dxc5 {[%emt 0:00:05]} Qxc5 {[%emt 0:00:04]} 27. axb5 {[%emt 0:00:04]} axb5 {[%emt 0:00:12]} 28. Rab1 {[%emt 0:00:22]} Bc6 {[%emt 0:00:58]} 29. e5 $2 {[%emt 0:05:36] Loses the game.} (29. Qb4 $17 {keeps fighting.} Qxb4 30. Rxb4) 29... Bxf3 $19 {[%emt 0:00:21]} (29... Nxe5 30. Bxc6 Rxc6 31. Qxb5 Qxb5 32. Rxb5 $17) 30. Qxf3 {[%emt 0:00:07]} Rfd8 {[%emt 0:02:02] Strongly threatening ...Nd2.} (30... Nxe5 31. Qh5 f6 32. Qe2) 31. Rxd8+ {[%emt 0:05:38]} Rxd8 {[%emt 0:00:08][%cal Bc8d8,Bd8d4,Bd4c4][%mdl 32]} 32. h3 $2 {[%emt 0:00:46]} (32. Bf4) 32... Nd2 {[%emt 0:05:47]} 33. Qd1 {[%emt 0:00:09]} Rd4 {[%emt 0:00:42] Inhibits Bf4.} 34. Ra1 {[%emt 0:01:47]} (34. Qc1 Qxc1+ 35. Rxc1) 34... Qd5 {[%emt 0:02:12] White must now prevent ...Nb3.} 35. Qc2 {[%emt 0:02:17]} Rc4 {[%emt 0:01:33] Prevents Qc8+.} 36. Qb2 {[%emt 0:01:11]} b4 {[%emt 0:01:27]} 37. Ra4 {[%emt 0:05:22] [#]} Qd4 $2 {[%emt 0:03:28]} (37... Nf3+ $1 {[%mdl 512]} 38. gxf3 Qd1+ 39. Kg2 Qxa4) 38. Qxd4 {[%emt 0:01:31]} Rxd4 {[%emt 0:00:04][%mdl 4096] Endgame KRB-KRN} 39. f3 {[%emt 0:00:10]} Rc4 {[%emt 0:01:32]} 40. Be1 {[%emt 0:01:07] [#]} b3 $1 {[%emt 0:00:40][%cal Bb4b3,Bb3b2][%mdl 32]} 41. Ra8+ {[%emt 0:30:52]} Kh7 {[%emt 0:30:04]} 42. Rb8 {[%emt 0:00:20]} Rc1 {[%emt 0:00:26]} 43. Kf2 {[%emt 0:00:52] [#]} Rc2 {[%emt 0:00:33]} 44. Bxd2 {[%emt 0:00:33]} (44. Ke3 $142 Nf1+ 45. Kd3) 44... Rxd2+ {[%emt 0:00:10] KR-KR} 45. Kg3 {[%emt 0:03:52]} b2 {[%emt 0:00:30]} 46. f4 {[%emt 0:00:00]} h5 {[%emt 0:00:00][%cal Bh6h5,Bh5h4,Bh4h3][%mdl 32]} 47. Kf3 {[%emt 0:00:00] [#]} h4 $1 {[%emt 0:00:00]} 48. g4 $2 {[%emt 0:00:00]} (48. Rb7 {was called for.}) 48... Rh2 {[%emt 0:07:27] Black is clearly winning.} ({Weaker is} 48... hxg3 49. Kxg3 Kg6 50. Kg4 $17) 49. Ke4 {[%emt 0:00:00]} Kg6 {[%emt 0:00:00]} 50. Rb6 {[%emt 0:00:00]} Rxh3 {[%emt 0:00:00] ...Rh2 is the strong threat.} 51. Rxb2 {[%emt 0:00:00]} Rg3 {[%emt 0:00:00]} 52. g5 {[%emt 0:00:00]} (52. Rb8 $142 Kh7 53. Rb7) 52... h3 {[%emt 0:00:00]} 53. f5+ {[%emt 0:00:00]} Kxg5 {[%emt 0:00:00] Weighted Error Value: White=0.70/Black=0.22 (precise)} 0-1